[Event "*** Titled Tuesday Blitz"]
[Site "Chess.com"]
[Date "2019.01.01"]
[Round "4"]
[White "MaestroASK"]
[Black "Hrant_ChessMood"]
[Result "0-1"]
[WhiteElo "2546"]
[BlackElo "2957"]
[TimeControl "180+2"]
[EndTime "13:55:14 PST"]
[Termination "Hrant_ChessMood won by resignation"]

1. g3 {[%clk 0:02:50.2]} 1... d5 {[%clk 0:02:56.7]} 2. d3 {[%clk 0:02:50.7]}
2... c5 {[%clk 0:02:54.8]} 3. e4 {[%clk 0:02:50.9]} 3... dxe4 {[%clk 0:02:54]}
4. dxe4 {[%clk 0:02:51]} 4... Qxd1+ {[%clk 0:02:55.1]} 5. Kxd1 {[%clk
0:02:51.7]} 5... Nc6 {[%clk 0:02:56.8]} 6. Nd2 {[%clk 0:02:50.4]} 6... f5 {[%clk
0:02:49.2]} 7. f3 {[%clk 0:02:49.3]} 7... Nf6 {[%clk 0:02:49.9]} 8. Bh3 {[%clk
0:02:44.5]} 8... g6 {[%clk 0:02:38.6]} 9. Ne2 {[%clk 0:02:32.2]} 9... Bh6 {[%clk
0:02:39.4]} 10. exf5 {[%clk 0:02:25.6]} 10... Bxf5 {[%clk 0:02:31.7]} 11. Bxf5
{[%clk 0:02:23.5]} 11... gxf5 {[%clk 0:02:33.6]} 12. c3 {[%clk 0:02:18.9]} 12...
O-O-O {[%clk 0:02:34.3]} 13. Kc2 {[%clk 0:02:17.3]} 13... Nd5 {[%clk 0:02:25.8]}
14. Nc4 {[%clk 0:02:08]} 14... Bxc1 {[%clk 0:02:27]} 15. Raxc1 {[%clk
0:02:06.4]} 15... b5 {[%clk 0:02:28.9]} 16. Na3 {[%clk 0:02:05.3]} 16... a6
{[%clk 0:02:24.7]} 17. Rce1 {[%clk 0:01:56.4]} 17... Ne5 {[%clk 0:02:23.6]} 18.
Ng1 {[%clk 0:01:55.1]} 18... Nc6 {[%clk 0:02:10.5]} 19. Nh3 {[%clk 0:01:55]}
19... e5 {[%clk 0:02:04.9]} 20. Kc1 {[%clk 0:01:41]} 20... Rhe8 {[%clk
0:01:57.8]} 21. Ng5 {[%clk 0:01:32.2]} 21... Re7 {[%clk 0:01:58.6]} 22. Re2
{[%clk 0:01:27]} 22... h6 {[%clk 0:01:58.2]} 23. Nh3 {[%clk 0:01:27.5]} 23... b4
{[%clk 0:01:59.5]} 24. Nb1 {[%clk 0:01:24.8]} 24... bxc3 {[%clk 0:01:56.4]} 25.
bxc3 {[%clk 0:01:25]} 25... Na5 {[%clk 0:01:51.8]} 26. Nf2 {[%clk 0:01:02.7]}
26... Nc4 {[%clk 0:01:50.2]} 27. Nd1 {[%clk 0:01:02.5]} 27... Kc7 {[%clk
0:01:42]} 28. Nd2 {[%clk 0:00:56.6]} 28... Ndb6 {[%clk 0:01:38.5]} 29. Nxc4
{[%clk 0:00:49.9]} 29... Nxc4 {[%clk 0:01:40.4]} 30. Nb2 {[%clk 0:00:48]} 30...
Nxb2 {[%clk 0:01:40.6]} 31. Kxb2 {[%clk 0:00:47.8]} 31... Rd3 {[%clk 0:01:42.5]}
32. Rf1 {[%clk 0:00:47.1]} 32... c4 {[%clk 0:01:33.6]} 33. Kc2 {[%clk
0:00:46.7]} 33... Kd6 {[%clk 0:01:33.3]} 34. Rd1 {[%clk 0:00:37.3]} 34... Rxd1
{[%clk 0:01:32.5]} 35. Kxd1 {[%clk 0:00:37.1]} 35... Ke6 {[%clk 0:01:34.4]} 36.
Rb2 {[%clk 0:00:35.4]} 36... Rd7+ {[%clk 0:01:34.5]} 37. Ke2 {[%clk 0:00:35.5]}
37... Rd3 {[%clk 0:01:36]} 38. Rb6+ {[%clk 0:00:34.7]} 38... Kd5 {[%clk
0:01:37.5]} 39. Rxa6 {[%clk 0:00:25.2]} 39... Rxc3 {[%clk 0:01:38.6]} 40. Rxh6
{[%clk 0:00:24.3]} 40... Rc2+ {[%clk 0:01:39.9]} 41. Ke3 {[%clk 0:00:24.8]}
41... Rxa2 {[%clk 0:01:40.6]} 42. Rh8 {[%clk 0:00:24.8]} 42... Ra3+ {[%clk
0:01:41.8]} 43. Ke2 {[%clk 0:00:25.2]} 43... f4 {[%clk 0:01:21.8]} 44. gxf4
{[%clk 0:00:23.5]} 44... exf4 {[%clk 0:01:23.7]} 45. Rd8+ {[%clk 0:00:23.3]}
45... Kc5 {[%clk 0:01:23.5]} 46. Rf8 {[%clk 0:00:20.4]} 46... Ra2+ {[%clk
0:01:23.9]} 47. Kd1 {[%clk 0:00:20.9]} 47... Kd4 {[%clk 0:01:24.2]} 48. Rxf4+
{[%clk 0:00:18.8]} 48... Kd3 {[%clk 0:01:25.4]} 49. Kc1 {[%clk 0:00:16.9]} 49...
c3 {[%clk 0:01:26.4]} 50. Kb1 {[%clk 0:00:16.7]} 50... Rb2+ {[%clk 0:01:24.8]}
51. Ka1 {[%clk 0:00:16.8]} 51... Rb5 {[%clk 0:01:23]} 52. Rf8 {[%clk 0:00:17]}
52... c2 {[%clk 0:01:24.4]} 53. Rc8 {[%clk 0:00:15.9]} 53... Rb1+ {[%clk
0:01:22.6]} 0-1

[Event "*** Titled Tuesday Blitz"]
[Site "Chess.com"]
[Date "2019.01.01"]
[Round "4"]
[White "farzadbfd"]
[Black "joppie2"]
[Result "0-1"]
[WhiteElo "2495"]
[BlackElo "2742"]
[TimeControl "180+2"]
[EndTime "13:55:19 PST"]
[Termination "joppie2 won on time"]

1. e4 {[%clk 0:03:01.9]} 1... e6 {[%clk 0:03:01.4]} 2. d4 {[%clk 0:03:02.8]}
2... d5 {[%clk 0:02:59.9]} 3. exd5 {[%clk 0:03:04.7]} 3... Qxd5 {[%clk
0:02:59.6]} 4. Nf3 {[%clk 0:03:06.5]} 4... Nf6 {[%clk 0:03:00.3]} 5. Nc3 {[%clk
0:02:57.6]} 5... Qd8 {[%clk 0:03:00.3]} 6. Be2 {[%clk 0:02:54.6]} 6... Nbd7
{[%clk 0:03:00.2]} 7. O-O {[%clk 0:02:55.6]} 7... Bd6 {[%clk 0:02:59.5]} 8. Bg5
{[%clk 0:02:55.7]} 8... h6 {[%clk 0:03:00]} 9. Bh4 {[%clk 0:02:56.9]} 9... O-O
{[%clk 0:03:01.5]} 10. a4 {[%clk 0:02:53.5]} 10... a5 {[%clk 0:02:59]} 11. Nb5
{[%clk 0:02:47.4]} 11... Be7 {[%clk 0:02:58.4]} 12. Bg3 {[%clk 0:02:48.9]} 12...
Ne8 {[%clk 0:02:57.4]} 13. Re1 {[%clk 0:02:35.2]} 13... c6 {[%clk 0:02:52.5]}
14. Na3 {[%clk 0:02:36.4]} 14... b6 {[%clk 0:02:54.2]} 15. Ne5 {[%clk
0:02:35.8]} 15... Bb7 {[%clk 0:02:55]} 16. Nxd7 {[%clk 0:02:33.5]} 16... Qxd7
{[%clk 0:02:55]} 17. Nc4 {[%clk 0:02:35]} 17... Qd8 {[%clk 0:02:50.8]} 18. Bf3
{[%clk 0:02:35.7]} 18... Nd6 {[%clk 0:02:48.2]} 19. Ne5 {[%clk 0:02:21.3]} 19...
Rc8 {[%clk 0:02:49.3]} 20. c3 {[%clk 0:02:08.3]} 20... Nf5 {[%clk 0:02:33.8]}
21. Bf4 {[%clk 0:01:47.6]} 21... Bg5 {[%clk 0:02:33.6]} 22. Qd2 {[%clk
0:01:46.1]} 22... Bxf4 {[%clk 0:02:25.9]} 23. Qxf4 {[%clk 0:01:48]} 23... Qc7
{[%clk 0:02:25.3]} 24. Rad1 {[%clk 0:01:23.9]} 24... Rfd8 {[%clk 0:02:17.1]} 25.
Be4 {[%clk 0:01:01.3]} 25... Nd6 {[%clk 0:02:15]} 26. Bb1 {[%clk 0:01:01.8]}
26... c5 {[%clk 0:02:07.9]} 27. Rd3 {[%clk 0:01:02]} 27... Nf5 {[%clk
0:01:45.3]} 28. dxc5 {[%clk 0:00:25.8]} 28... bxc5 {[%clk 0:01:40.6]} 29. Rxd8+
{[%clk 0:00:15.7]} 29... Rxd8 {[%clk 0:01:42.5]} 30. Bxf5 {[%clk 0:00:15.3]}
30... exf5 {[%clk 0:01:44.4]} 31. Qxf5 {[%clk 0:00:16.8]} 31... Re8 {[%clk
0:01:44.6]} 32. Nf3 {[%clk 0:00:16.3]} 32... Rxe1+ {[%clk 0:01:27.1]} 33. Nxe1
{[%clk 0:00:18.2]} 33... Qe7 {[%clk 0:01:28.6]} 34. Nf3 {[%clk 0:00:09]} 34...
Qe2 {[%clk 0:01:30.1]} 35. h3 {[%clk 0:00:09.9]} 35... Qxb2 {[%clk 0:01:30.1]}
36. Qxc5 {[%clk 0:00:10.9]} 36... Qa1+ {[%clk 0:01:27.8]} 37. Kh2 {[%clk
0:00:11]} 37... Qxa4 {[%clk 0:01:29.7]} 38. Qc7 {[%clk 0:00:12]} 38... Qb5
{[%clk 0:01:21.6]} 39. c4 {[%clk 0:00:12.3]} 39... Qb4 {[%clk 0:01:22.1]} 40. c5
{[%clk 0:00:12.6]} 40... Be4 {[%clk 0:01:14.3]} 41. c6 {[%clk 0:00:10.5]} 41...
Qc5 {[%clk 0:01:11.1]} 42. Qd8+ {[%clk 0:00:09.9]} 42... Kh7 {[%clk 0:01:12.1]}
43. c7 {[%clk 0:00:11.5]} 43... Bb7 {[%clk 0:01:05.9]} 44. Qb8 {[%clk
0:00:09.3]} 44... Qd6+ {[%clk 0:01:04.5]} 45. Kg1 {[%clk 0:00:06.2]} 45... Qc6
{[%clk 0:01:03.8]} 46. Kf1 {[%clk 0:00:07]} 46... Qc1+ {[%clk 0:01:02]} 47. Ke2
{[%clk 0:00:08]} 47... Ba6+ {[%clk 0:01:02.8]} 0-1

[Event "*** Titled Tuesday Blitz"]
[Site "Chess.com"]
[Date "2019.01.01"]
[Round "4"]
[White "Andrew-FB00"]
[Black "GremioPrudente"]
[Result "1/2-1/2"]
[WhiteElo "1805"]
[BlackElo "2012"]
[TimeControl "180+2"]
[EndTime "13:55:19 PST"]
[Termination "Game drawn by agreement"]

1. e4 {[%clk 0:03:01.9]} 1... e6 {[%clk 0:03:00.4]} 2. d4 {[%clk 0:03:01.6]}
2... d5 {[%clk 0:03:00.9]} 3. exd5 {[%clk 0:03:00.2]} 3... exd5 {[%clk
0:03:01.6]} 4. Bd3 {[%clk 0:02:59.3]} 4... Bd6 {[%clk 0:03:01.7]} 5. Qf3 {[%clk
0:02:58.5]} 5... Nf6 {[%clk 0:02:56.9]} 6. h3 {[%clk 0:02:58]} 6... Nc6 {[%clk
0:02:43.3]} 7. Ne2 {[%clk 0:02:57.7]} 7... O-O {[%clk 0:02:38.4]} 8. Bg5 {[%clk
0:02:53.8]} 8... Be7 {[%clk 0:02:37.4]} 9. c3 {[%clk 0:02:53.8]} 9... Ne4 {[%clk
0:02:25.7]} 10. Bxe7 {[%clk 0:02:43.4]} 10... Qxe7 {[%clk 0:02:26]} 11. Nd2
{[%clk 0:02:39.1]} 11... Re8 {[%clk 0:02:12]} 12. O-O-O {[%clk 0:02:30.8]} 12...
Bd7 {[%clk 0:01:56.1]} 13. Nf4 {[%clk 0:02:26.8]} 13... Nxd2 {[%clk 0:00:56.4]}
14. Rxd2 {[%clk 0:02:23.2]} 14... Be6 {[%clk 0:00:50]} 15. Nxd5 {[%clk
0:02:12.6]} 15... Bxd5 {[%clk 0:00:42.2]} 16. Qxd5 {[%clk 0:02:12.5]} 16... Rad8
{[%clk 0:00:41.9]} 17. Qf5 {[%clk 0:02:06.3]} 17... g6 {[%clk 0:00:40.3]} 18.
Qf3 {[%clk 0:02:04.1]} 18... Qe6 {[%clk 0:00:37.5]} 19. Kb1 {[%clk 0:01:52.9]}
19... Na5 {[%clk 0:00:37.5]} 20. Rhd1 {[%clk 0:01:42.5]} 20... b6 {[%clk
0:00:33.6]} 21. Bb5 {[%clk 0:01:40.4]} 21... c6 {[%clk 0:00:33]} 22. Bd3 {[%clk
0:01:39.7]} 22... Nc4 {[%clk 0:00:33.6]} 23. Bxc4 {[%clk 0:01:39.8]} 23... Qxc4
{[%clk 0:00:34.7]} 24. Qd3 {[%clk 0:01:39.3]} 24... Qxd3+ {[%clk 0:00:32.3]} 25.
Rxd3 {[%clk 0:01:39.8]} 25... Re2 {[%clk 0:00:33.8]} 26. R1d2 {[%clk 0:01:37.2]}
26... Rde8 {[%clk 0:00:34.8]} 27. Kc2 {[%clk 0:01:33.4]} 27... Kg7 {[%clk
0:00:31.6]} 28. Rxe2 {[%clk 0:01:33.3]} 28... Rxe2+ {[%clk 0:00:32.3]} 29. Rd2
{[%clk 0:01:34.4]} 29... Re1 {[%clk 0:00:32.1]} 30. Kd3 {[%clk 0:01:32.5]} 30...
Kf6 {[%clk 0:00:32]} 31. Re2 {[%clk 0:01:32.4]} 31... Ra1 {[%clk 0:00:31.2]} 32.
a3 {[%clk 0:01:32.4]} 32... Rb1 {[%clk 0:00:32.7]} 33. Ke4 {[%clk 0:01:28.4]}
33... Ke6 {[%clk 0:00:30.1]} 34. g3 {[%clk 0:01:20.9]} 34... f6 {[%clk
0:00:24.8]} 35. Kd3+ {[%clk 0:01:17.7]} 35... Kd6 {[%clk 0:00:25.4]} 36. c4
{[%clk 0:01:16.5]} 36... Rd1+ {[%clk 0:00:23.4]} 37. Rd2 {[%clk 0:01:08.3]}
37... Rc1 {[%clk 0:00:23.9]} 38. h4 {[%clk 0:00:51.9]} 38... a6 {[%clk
0:00:23.5]} 39. Rc2 {[%clk 0:00:39.7]} 39... Rd1+ {[%clk 0:00:24.3]} 40. Rd2
{[%clk 0:00:39.7]} 40... Rc1 {[%clk 0:00:25.5]} 41. Re2 {[%clk 0:00:37.6]} 41...
Rd1+ {[%clk 0:00:26.2]} 42. Kc3 {[%clk 0:00:34.9]} 42... Rc1+ {[%clk 0:00:26.7]}
43. Rc2 {[%clk 0:00:35.6]} 43... Rd1 {[%clk 0:00:27.3]} 44. Rd2 {[%clk
0:00:35.3]} 44... Rc1+ {[%clk 0:00:27.6]} 45. Kd3 {[%clk 0:00:35.6]} 45... h6
{[%clk 0:00:27.1]} 1/2-1/2

[Event "*** Titled Tuesday Blitz"]
[Site "Chess.com"]
[Date "2019.01.01"]
[Round "4"]
[White "GeorgMeier"]
[Black "Fins0905"]
[Result "1-0"]
[WhiteElo "2816"]
[BlackElo "2574"]
[TimeControl "180+2"]
[EndTime "13:55:30 PST"]
[Termination "GeorgMeier won by resignation"]

1. Nf3 {[%clk 0:03:01.9]} 1... d5 {[%clk 0:03:00.3]} 2. g3 {[%clk 0:03:03]} 2...
c6 {[%clk 0:03:00.7]} 3. Bg2 {[%clk 0:03:04.1]} 3... Bg4 {[%clk 0:03:01.8]} 4.
O-O {[%clk 0:03:05]} 4... Nd7 {[%clk 0:03:02.3]} 5. h3 {[%clk 0:03:06.2]} 5...
Bh5 {[%clk 0:02:59.3]} 6. d3 {[%clk 0:03:07.5]} 6... e5 {[%clk 0:02:59.9]} 7. c4
{[%clk 0:03:08.1]} 7... dxc4 {[%clk 0:02:59.7]} 8. d4 {[%clk 0:03:05.8]} 8...
exd4 {[%clk 0:02:37.8]} 9. Qxd4 {[%clk 0:03:06.7]} 9... Ngf6 {[%clk 0:02:37.7]}
10. Qxc4 {[%clk 0:03:07.4]} 10... Be7 {[%clk 0:02:36]} 11. Nh4 {[%clk
0:03:00.7]} 11... O-O {[%clk 0:02:25.3]} 12. Nc3 {[%clk 0:02:50.5]} 12... Qa5
{[%clk 0:02:11.1]} 13. a3 {[%clk 0:02:39.4]} 13... Nb6 {[%clk 0:01:37.2]} 14.
Qb3 {[%clk 0:02:39.7]} 14... Rfe8 {[%clk 0:01:34]} 15. e4 {[%clk 0:02:26.4]}
15... Bf8 {[%clk 0:01:29]} 16. Qc2 {[%clk 0:02:16.2]} 16... Bg6 {[%clk 0:01:10]}
17. Nxg6 {[%clk 0:02:12.6]} 17... hxg6 {[%clk 0:01:10.7]} 18. Bf4 {[%clk
0:02:14.1]} 18... Nc4 {[%clk 0:01:04.7]} 19. b4 {[%clk 0:02:02]} 19... Qh5
{[%clk 0:00:46.5]} 20. g4 {[%clk 0:01:59.2]} 20... Qh4 {[%clk 0:00:38.4]} 21.
Bg3 {[%clk 0:01:58.4]} 21... Qh6 {[%clk 0:00:26.3]} 22. Rfd1 {[%clk 0:01:53.9]}
22... Rad8 {[%clk 0:00:26.1]} 23. Qb3 {[%clk 0:01:22.5]} 23... Nd2 {[%clk
0:00:14]} 24. Qc2 {[%clk 0:01:22.9]} 24... Nc4 {[%clk 0:00:12.6]} 25. Rd3 {[%clk
0:01:09.8]} 25... b5 {[%clk 0:00:09.2]} 26. Ne2 {[%clk 0:00:51.1]} 26... Rxd3
{[%clk 0:00:04.7]} 27. Qxd3 {[%clk 0:00:52.1]} 27... Qd2 {[%clk 0:00:06.1]} 28.
Qxd2 {[%clk 0:00:52.5]} 28... Nxd2 {[%clk 0:00:08]} 29. e5 {[%clk 0:00:49.6]}
29... Nfe4 {[%clk 0:00:05.3]} 30. Bh2 {[%clk 0:00:22.6]} 30... f5 {[%clk
0:00:06.3]} 31. Nd4 {[%clk 0:00:21.8]} 31... c5 {[%clk 0:00:05.6]} 32. Nxb5
{[%clk 0:00:22.2]} 32... cxb4 {[%clk 0:00:06.8]} 33. axb4 {[%clk 0:00:20]} 33...
Bxb4 {[%clk 0:00:08.7]} 34. Bxe4 {[%clk 0:00:09.3]} 34... Nxe4 {[%clk
0:00:07.8]} 35. Kg2 {[%clk 0:00:10.7]} 35... a5 {[%clk 0:00:07.7]} 36. f3 {[%clk
0:00:11.5]} 36... Nc3 {[%clk 0:00:08.8]} 37. Nd6 {[%clk 0:00:09.7]} 37... Bxd6
{[%clk 0:00:08.2]} 38. exd6 {[%clk 0:00:10.5]} 38... Re2+ {[%clk 0:00:09.8]} 39.
Kh1 {[%clk 0:00:11.7]} 39... a4 {[%clk 0:00:07.1]} 40. Bf4 {[%clk 0:00:10.2]}
40... Rf2 {[%clk 0:00:03]} 41. d7 {[%clk 0:00:10.5]} 41... Rxf3 {[%clk
0:00:03.4]} 42. d8=Q+ {[%clk 0:00:11.8]} 42... Kh7 {[%clk 0:00:05]} 43. Qh4+
{[%clk 0:00:12.4]} 1-0

[Event "*** Titled Tuesday Blitz"]
[Site "Chess.com"]
[Date "2019.01.01"]
[Round "4"]
[White "Jbd735"]
[Black "mouseWLZ"]
[Result "0-1"]
[WhiteElo "2479"]
[BlackElo "2345"]
[TimeControl "180+2"]
[EndTime "13:55:32 PST"]
[Termination "mouseWLZ won on time"]

1. e4 {[%clk 0:03:01.9]} 1... e6 {[%clk 0:03:00.9]} 2. d4 {[%clk 0:03:02.5]}
2... d5 {[%clk 0:03:01.9]} 3. Nc3 {[%clk 0:03:03.4]} 3... Nf6 {[%clk 0:03:02.7]}
4. Bg5 {[%clk 0:03:03.1]} 4... Bb4 {[%clk 0:03:03.6]} 5. e5 {[%clk 0:03:02.9]}
5... h6 {[%clk 0:03:04.9]} 6. Bd2 {[%clk 0:03:03.2]} 6... Bxc3 {[%clk
0:03:06.1]} 7. bxc3 {[%clk 0:03:04.5]} 7... Ne4 {[%clk 0:03:06.7]} 8. Qg4 {[%clk
0:03:05.9]} 8... Kf8 {[%clk 0:03:07.7]} 9. Bd3 {[%clk 0:03:04.6]} 9... Nxd2
{[%clk 0:03:08.1]} 10. Kxd2 {[%clk 0:03:06.3]} 10... c5 {[%clk 0:03:09.5]} 11.
Nf3 {[%clk 0:03:05.1]} 11... Nc6 {[%clk 0:03:10.5]} 12. Rhb1 {[%clk 0:02:26.6]}
12... c4 {[%clk 0:03:07.7]} 13. Be2 {[%clk 0:02:26.4]} 13... Rb8 {[%clk
0:03:07.6]} 14. a4 {[%clk 0:02:23.4]} 14... a6 {[%clk 0:03:08.1]} 15. h4 {[%clk
0:02:22.5]} 15... b5 {[%clk 0:03:07.8]} 16. axb5 {[%clk 0:02:21.8]} 16... axb5
{[%clk 0:03:09.7]} 17. h5 {[%clk 0:02:10.1]} 17... Bd7 {[%clk 0:02:57.5]} 18.
Qf4 {[%clk 0:02:07.8]} 18... Qe7 {[%clk 0:02:41.3]} 19. g4 {[%clk 0:02:05.4]}
19... Kg8 {[%clk 0:02:22.3]} 20. Rg1 {[%clk 0:01:03]} 20... b4 {[%clk
0:02:14.8]} 21. g5 {[%clk 0:01:03.2]} 21... bxc3+ {[%clk 0:02:16]} 22. Ke3
{[%clk 0:01:03.6]} 22... Nb4 {[%clk 0:02:11.2]} 23. Bd1 {[%clk 0:01:01.2]} 23...
Kf8 {[%clk 0:02:07.9]} 24. Ra7 {[%clk 0:00:54]} 24... Nc6 {[%clk 0:01:55.4]} 25.
Rc7 {[%clk 0:00:45.7]} 25... Rc8 {[%clk 0:01:55.6]} 26. Rb7 {[%clk 0:00:42]}
26... Nd8 {[%clk 0:01:45]} 27. Nh4 {[%clk 0:00:20.7]} 27... Ke8 {[%clk 0:01:25]}
28. gxh6 {[%clk 0:00:19.8]} 28... gxh6 {[%clk 0:01:09.2]} 29. Ra7 {[%clk
0:00:15.4]} 29... Nc6 {[%clk 0:01:06.7]} 30. Rb7 {[%clk 0:00:11.4]} 30... Rb8
{[%clk 0:00:55.5]} 31. Rxb8+ {[%clk 0:00:10.4]} 31... Nxb8 {[%clk 0:00:57.4]}
32. Rg7 {[%clk 0:00:10.9]} 32... Qf8 {[%clk 0:00:41.4]} 33. Qf6 {[%clk
0:00:09.1]} 33... Bc8 {[%clk 0:00:37.3]} 34. Rxf7 {[%clk 0:00:06.3]} 34... Qxf7
{[%clk 0:00:32.5]} 35. Qxh8+ {[%clk 0:00:06.8]} 35... Kd7 {[%clk 0:00:33.5]} 36.
Qxh6 {[%clk 0:00:07.2]} 36... Nc6 {[%clk 0:00:31.3]} 37. Ng6 {[%clk 0:00:07.1]}
37... Nxd4 {[%clk 0:00:14.2]} 38. Kxd4 {[%clk 0:00:07.4]} 38... Kc6 {[%clk
0:00:15.8]} 39. Qf4 {[%clk 0:00:05.9]} 39... Qa7+ {[%clk 0:00:16.8]} 40. Kxc3
{[%clk 0:00:04.9]} 40... Qa5+ {[%clk 0:00:16.1]} 41. Kb2 {[%clk 0:00:03.5]}
41... Qb4+ {[%clk 0:00:17.3]} 42. Kc1 {[%clk 0:00:03.3]} 42... Qc3 {[%clk
0:00:17.4]} 0-1

[Event "*** Titled Tuesday Blitz"]
[Site "Chess.com"]
[Date "2019.01.01"]
[Round "4"]
[White "guillembaches"]
[Black "PlotnikovPavel"]
[Result "1/2-1/2"]
[WhiteElo "2340"]
[BlackElo "2382"]
[TimeControl "180+2"]
[EndTime "13:55:33 PST"]
[Termination "Game drawn by repetition"]

1. e4 {[%clk 0:03:01.9]} 1... e6 {[%clk 0:03:01.3]} 2. d4 {[%clk 0:03:01]} 2...
d5 {[%clk 0:03:02.7]} 3. exd5 {[%clk 0:03:02.4]} 3... exd5 {[%clk 0:03:03.7]} 4.
Nf3 {[%clk 0:03:03.9]} 4... Bd6 {[%clk 0:03:04.5]} 5. c4 {[%clk 0:03:04.3]} 5...
c6 {[%clk 0:03:03.6]} 6. Nc3 {[%clk 0:03:04.7]} 6... Ne7 {[%clk 0:03:02.2]} 7.
Bd3 {[%clk 0:03:05.5]} 7... dxc4 {[%clk 0:03:00]} 8. Bxc4 {[%clk 0:03:07.4]}
8... O-O {[%clk 0:03:00.6]} 9. O-O {[%clk 0:03:08.2]} 9... Nd7 {[%clk
0:02:54.2]} 10. Bg5 {[%clk 0:03:05.3]} 10... Qc7 {[%clk 0:02:49.6]} 11. Re1
{[%clk 0:02:48.9]} 11... Nb6 {[%clk 0:02:36.1]} 12. Bb3 {[%clk 0:02:48.1]} 12...
Bg4 {[%clk 0:02:31.5]} 13. h3 {[%clk 0:02:42.1]} 13... Bh5 {[%clk 0:02:30]} 14.
g4 {[%clk 0:02:25.9]} 14... Bg6 {[%clk 0:02:30.2]} 15. Ne5 {[%clk 0:02:26]}
15... Kh8 {[%clk 0:01:48.5]} 16. Bxe7 {[%clk 0:02:14.2]} 16... Bxe7 {[%clk
0:01:45.8]} 17. Rc1 {[%clk 0:02:11.6]} 17... Bg5 {[%clk 0:01:39.7]} 18. Nxg6+
{[%clk 0:01:44.6]} 18... fxg6 {[%clk 0:01:37.2]} 19. Rc2 {[%clk 0:01:45.7]}
19... Rad8 {[%clk 0:01:33.3]} 20. Ne4 {[%clk 0:01:39.4]} 20... Bh4 {[%clk
0:01:28.1]} 21. Ree2 {[%clk 0:01:16.9]} 21... Nd5 {[%clk 0:01:25.7]} 22. Bxd5
{[%clk 0:01:14.2]} 22... Rxd5 {[%clk 0:01:27.1]} 23. Nc5 {[%clk 0:01:10.8]}
23... Qf7 {[%clk 0:01:09.7]} 24. Qd3 {[%clk 0:01:06.2]} 24... h6 {[%clk
0:01:05]} 25. Ne6 {[%clk 0:00:36.7]} 25... Re8 {[%clk 0:01:00.7]} 26. Nf4 {[%clk
0:00:32.7]} 26... Rxe2 {[%clk 0:00:58.8]} 27. Nxg6+ {[%clk 0:00:33.8]} 27...
Qxg6 {[%clk 0:00:47.8]} 28. Qxg6 {[%clk 0:00:30.7]} 28... Bxf2+ {[%clk
0:00:47.2]} 29. Kg2 {[%clk 0:00:25.2]} 29... Rxc2 {[%clk 0:00:45]} 30. Qxc2
{[%clk 0:00:27.1]} 30... Bxd4 {[%clk 0:00:46.4]} 31. Qg6 {[%clk 0:00:23.9]}
31... Bf6 {[%clk 0:00:44.3]} 32. Qe8+ {[%clk 0:00:23.3]} 32... Kh7 {[%clk
0:00:45.1]} 33. Qe4+ {[%clk 0:00:24.1]} 33... Kh8 {[%clk 0:00:45.5]} 34. Qe8+
{[%clk 0:00:24.9]} 34... Kh7 {[%clk 0:00:46.3]} 35. Qe4+ {[%clk 0:00:26.1]}
35... g6 {[%clk 0:00:36.7]} 36. b3 {[%clk 0:00:21.2]} 36... Rd7 {[%clk
0:00:36.6]} 37. Qe6 {[%clk 0:00:20.2]} 37... Rd2+ {[%clk 0:00:34.8]} 38. Kf3
{[%clk 0:00:20.8]} 38... Bg7 {[%clk 0:00:35.6]} 39. h4 {[%clk 0:00:21.2]} 39...
Rxa2 {[%clk 0:00:32.4]} 40. h5 {[%clk 0:00:22.3]} 40... gxh5 {[%clk 0:00:28.4]}
41. gxh5 {[%clk 0:00:23.4]} 41... Ra5 {[%clk 0:00:21.2]} 42. Qg6+ {[%clk
0:00:23.4]} 42... Kh8 {[%clk 0:00:21.5]} 43. Qe8+ {[%clk 0:00:24.5]} 43... Kh7
{[%clk 0:00:22.8]} 44. Qg6+ {[%clk 0:00:25.4]} 44... Kh8 {[%clk 0:00:23.7]} 45.
Qe8+ {[%clk 0:00:26.3]} 45... Kh7 {[%clk 0:00:22]} 46. Qg6+ {[%clk 0:00:27.3]}
1/2-1/2

[Event "*** Titled Tuesday Blitz"]
[Site "Chess.com"]
[Date "2019.01.01"]
[Round "4"]
[White "tomozupan"]
[Black "MikeSailer"]
[Result "1-0"]
[WhiteElo "2207"]
[BlackElo "2115"]
[TimeControl "180+2"]
[EndTime "13:55:33 PST"]
[Termination "tomozupan won on time"]

1. d4 {[%clk 0:03:01.9]} 1... d5 {[%clk 0:03:00.6]} 2. c4 {[%clk 0:03:02.2]}
2... c6 {[%clk 0:03:01.6]} 3. Nc3 {[%clk 0:03:02]} 3... Nf6 {[%clk 0:03:03.1]}
4. cxd5 {[%clk 0:03:03]} 4... cxd5 {[%clk 0:03:03.5]} 5. Nf3 {[%clk 0:03:03.5]}
5... Nc6 {[%clk 0:03:04.9]} 6. Bf4 {[%clk 0:03:03]} 6... a6 {[%clk 0:03:05.9]}
7. Ne5 {[%clk 0:03:02.3]} 7... Bd7 {[%clk 0:02:52.8]} 8. e3 {[%clk 0:02:58.6]}
8... e6 {[%clk 0:02:50.7]} 9. Bd3 {[%clk 0:02:37.7]} 9... Bb4 {[%clk 0:02:42.5]}
10. O-O {[%clk 0:02:37]} 10... O-O {[%clk 0:02:42.8]} 11. Na4 {[%clk 0:02:23.1]}
11... Nxe5 {[%clk 0:02:29.4]} 12. Bxe5 {[%clk 0:02:22.4]} 12... Bxa4 {[%clk
0:02:23.4]} 13. Qxa4 {[%clk 0:02:22.1]} 13... Bd6 {[%clk 0:02:23.5]} 14. f4
{[%clk 0:01:58.5]} 14... Ne4 {[%clk 0:02:15.3]} 15. Bxe4 {[%clk 0:01:57.4]}
15... dxe4 {[%clk 0:02:16.4]} 16. Qc2 {[%clk 0:01:47.6]} 16... f5 {[%clk
0:02:16.6]} 17. Qb3 {[%clk 0:01:48.2]} 17... Qd7 {[%clk 0:01:58.3]} 18. Rac1
{[%clk 0:01:41.2]} 18... Bxe5 {[%clk 0:01:56.6]} 19. fxe5 {[%clk 0:01:41.4]}
19... Rfc8 {[%clk 0:01:54]} 20. Rcd1 {[%clk 0:01:34.9]} 20... g6 {[%clk
0:01:28.2]} 21. d5 {[%clk 0:01:20.5]} 21... exd5 {[%clk 0:01:23.8]} 22. Rxd5
{[%clk 0:01:20.7]} 22... Qf7 {[%clk 0:01:22.2]} 23. e6 {[%clk 0:01:14.4]} 23...
Qf6 {[%clk 0:01:03.4]} 24. Rd7 {[%clk 0:01:04]} 24... Re8 {[%clk 0:00:58.2]} 25.
e7+ {[%clk 0:00:44.1]} 25... Qf7 {[%clk 0:00:53.6]} 26. Qxb7 {[%clk 0:00:42.9]}
26... Rab8 {[%clk 0:00:54.8]} 27. Qc7 {[%clk 0:00:43.6]} 27... Rxb2 {[%clk
0:00:41.2]} 28. Rfd1 {[%clk 0:00:42.3]} 28... f4 {[%clk 0:00:41.2]} 29. exf4
{[%clk 0:00:16.7]} 29... Qxa2 {[%clk 0:00:38.6]} 30. f5 {[%clk 0:00:16.8]} 30...
Rxg2+ {[%clk 0:00:37.8]} 31. Kh1 {[%clk 0:00:17.8]} 31... Rc2 {[%clk 0:00:12.3]}
32. Qe5 {[%clk 0:00:14.5]} 32... Qb3 {[%clk 0:00:04.2]} 33. Qxe4 {[%clk
0:00:10.1]} 33... Rc4 {[%clk 0:00:03.8]} 34. Qd5+ {[%clk 0:00:08.4]} 34... Kg7
{[%clk 0:00:04.8]} 35. f6+ {[%clk 0:00:08.9]} 35... Kh6 {[%clk 0:00:06.1]} 36.
Rd8 {[%clk 0:00:05.4]} 36... Qxd1+ {[%clk 0:00:03.3]} 37. Qxd1 {[%clk 0:00:05]}
37... Rc1 {[%clk 0:00:04.4]} 38. Qxc1+ {[%clk 0:00:05.9]} 1-0